Cogmind - Beta 16.1 @@@ ROGUE MODE // 2026.03.20 @ 16:11:18 Player: AngelSpirit Result: Destroyed by D-53 Grenadier with Mini Grenade Launcher Performance ------------- Evolutions (0) 0 Regions Visited (2) 400 Robots Destroyed (23) 115 Value Destroyed (297) 297 Prototype IDs (0) 0 Alien Tech Used (0) 0 Bonus (0) 0 TOTAL SCORE: 812 Bonus ------- None Cogmind --------- Core Integrity 0/250 Matter 300/300 Energy 62/100 System Corruption 2% Temperature Hot (261) Movement Core (500) Ox9 Location -10/Mines Parts ------- > --- POWER (1) -------- (None) > --- PROPULSION (2) --- (None) > --- UTILITY (2) ------ Large Storage Unit Hardened Light Armor Plating > --- WEAPON (2) ------- Spread Laser > --- INVENTORY (15) --- Wheel Huge Storage Unit Hardened Light Armor Plating Hardened Light Armor Plating Hardened Light Armor Plating Heavy Assault Rifle Heavy Assault Rifle Grenade Launcher Grenade Launcher Peak State ------------ > --- POWER ------------ Light Ion Engine > --- PROPULSION ------- Wheel Compact Wheel > --- UTILITY ---------- Large Storage Unit Seismic Detector > --- WEAPON ----------- Heavy Assault Rifle Heavy Assault Rifle > --- INVENTORY -------- Wheel Huge Storage Unit Hardened Light Armor Plating Hardened Light Armor Plating Hardened Light Armor Plating Hardened Light Armor Plating Spread Laser Spread Laser Heavy Assault Rifle Heavy Assault Rifle Grenade Launcher Grenade Launcher [Rating: 11] Favorites ----------- Power Light Ion Engine Engine Light Ion Engine Propulsion Wheel Wheel Wheel Utility Seismic Detector Device Seismic Detector Storage Large Storage Unit Protection Hardened Light Armor Plating Weapon Spread Laser Energy Gun Spread Laser Ballistic Gun Heavy Assault Rifle Build | -11 -10 -10 ------- Run | Yrd Mat Min Slots Evolved . | . . . Power . | . . . Propulsion . | . . . Utility . | . . . Weapon . | . . . Parts Attached 20 | 8 11 1 Power 4 | 1 3 . Engine 4 | 1 3 . Core . | . . . Reactor . | . . . Propulsion 4 | 3 1 . Treads . | . . . Leg . | . . . Wheel 4 | 3 1 . Hover . | . . . Flight . | . . . Utility 4 | 2 1 1 Device 1 | 1 . . Storage 2 | 1 1 . Processor . | . . . Hackware . | . . . Protection 1 | . . 1 Artifact . | . . . Weapon 8 | 2 6 . Energy Gun 4 | 1 3 . Energy Cannon . | . . . Ballistic Gun 4 | 1 3 . Ballistic Cannon . | . . . Launcher . | . . . Special Weapon . | . . . Impact Weapon . | . . . Slashing Weapon . | . . . Piercing Weapon . | . . . Special Melee Weapon . | . . . Unidentified Prototypes . | . . . Parts Lost 8 | . 3 5 Power 2 | . 1 1 Propulsion 3 | . 1 2 Utility 1 | . . 1 Weapon 2 | . 1 1 Highest Loss Streak 5 | . 3 5 To Critical Strikes . | . . . Average Backups 6 | . 6 9 Power . | . . . Propulsion . | . . 1 Utility 2 | . 2 4 Weapon 2 | . 2 4 Tool/Special . | . . . Unused Backups 9 | . . 9 Power . | . . . Propulsion 1 | . . 1 Utility 4 | . . 4 Weapon 4 | . . 4 Tool/Special . | . . . Average Slot Usage (%) 98 | . 99 88 Engine 13 | . 13 11 Wheel 27 | . 27 22 Device 13 | . 14 8 Storage 14 | . 14 14 Energy Gun 15 | . 15 28 Ballistic Gun 11 | . 12 . Peak Build Rating 11 | 7 11 10 Average Rating 8 | 5 9 9 On Entrance 5 | . 7 10 Avg Prop Armor Cover (%) . | . . . Naked Turns . | . . . Heaviest Build 30 | 11 30 30 Greatest Support 26 | 26 26 26 Greatest Overweight (x) 1 | . 1 1 Average Overweight (x) . | . . 1 Largest Inventory Capacity 15 | 8 15 15 Average Capacity 12 | 7 12 15 Most Carried 12 | 1 12 10 Average Carried 6 | . 6 9 Final Capacity 15 | 8 15 15 Final Carried 10 | 1 10 9 Class Distribution -------------------- 100% | Mutant Dominant Class ---------------- Mutant | -10/Materials Mutant | -10/Mines Resources | -11 -10 -10 ----------- Run | Yrd Mat Min Matter Collected 624 | 289 335 . Remotely . | . . . Salvage Created 636 | 143 493 . Parts 50 | 7 43 . Haulers Intercepted 2 | . 2 . Recyclers Shooed 1 | . 1 . Parts Field Recycled . | . . . Retrieved Matter . | . . . Parts Self-Destructed . | . . . Prevented . | . . . Parts Restored . | . . . Kills | -11 -10 -10 ------- Run | Yrd Mat Min Combat Hostiles Destroyed 12 | . 12 . Guns 12 | . 12 . Classes Destroyed 8 | 2 6 . Worker 1 | . 1 . Tunneler 2 | 2 . . Hauler 2 | . 2 . Recycler 2 | 1 1 . Operator 1 | . 1 . Watcher 3 | . 3 . Swarmer 9 | . 9 . Grunt 3 | . 3 . Best Kill Streak 5 | 3 5 . Combat Bots Only 5 | . 5 . Max Kills in Single Turn 1 | 1 1 . Gunslinging . | . . . Exploded . | . . . Melee . | . . . Uniques/NPCs Destroyed . | . . . Combat | -11 -10 -10 -------- Run | Yrd Mat Min Hostile Shots Fired 103 | . 89 14 Missed 21 | . 21 . Hits 82 | . 68 14 Projectile 82 | . 68 14 AOE 14 | . . 14 Damage Taken 1104 | . 577 527 Core 269 | . 169 100 Absorbed by Shields . | . . . Core Remaining (%) 100 | 100 . . Volleys Fired 94 | 9 81 4 Largest 2 | 2 2 2 Hottest 130 | 60 130 130 Shots Fired 186 | 18 160 8 Gun 186 | 18 160 8 Cannon . | . . . Launcher . | . . . Special . | . . . Kinetic 123 | 9 114 . Thermal 63 | 9 46 8 Explosive . | . . . Electromagnetic . | . . . Robot Hit Streak 8 | 6 8 4 Robot Miss Streak 7 | 1 7 4 Penetration Max . | . . . Secondary Targets 5 | . 5 . Max Gunslinging Chain 1 | . 1 . Shots Hit Robots 82 | 12 62 8 Core Hits 49 | 5 36 8 Critical Kills . | . . . Critical Parts Destroyed . | . . . Critical Strikes . | . . . Melee Attacks . | . . . Impact . | . . . Slashing . | . . . Piercing . | . . . Sneak Attacks . | . . . Combat Hostiles . | . . . Follow-up Attacks . | . . . Damage Inflicted 1021 | 114 790 117 Guns 1021 | 114 790 117 Cannons . | . . . Explosions . | . . . Melee . | . . . Ramming . | . . . Kinetic 648 | 41 607 . Thermal 373 | 73 183 117 Explosive . | . . . Electromagnetic . | . . . Impact . | . . . Slashing . | . . . Piercing . | . . . Highest Corruption 2 | . 2 2 Average Corruption 2 | . 2 2 Corruption Purged . | . . . Corruption Blocked . | . . . Effects 18 | . 18 . Message Errors 3 | . 3 . Matter Fused 3 | . 3 . Heat Flow Errors 4 | . 4 . Energy Discharges 1 | . 1 . Data Loss (minor) 4 | . 4 . Data Loss (major) 1 | . 1 . Misfires 1 | . 1 . Weapon Failures 1 | . 1 . Overload Shots . | . . . Overflow Damage . | . . . Projectiles . | . . . Explosions . | . . . Melee . | . . . Knockbacks . | . . . Impact . | . . . Kinetic . | . . . Secondary . | . . . Self-Inflicted Damage . | . . . Shots . | . . . Rammed . | . . . Targets Rammed . | . . . Kicked . | . . . Crushed . | . . . Highest Temperature 294 | 40 294 261 Average Temperature 61 | 19 61 131 Received Heat Transfer 78 | . 78 . Siege Activations . | . . . Martial Activations . | . . . Shielding Activations . | . . . Robots Disrupted . | . . . Combat Hostiles . | . . . Robots Corrupted . | . . . Combat Hostiles . | . . . Parts Fried . | . . . Impact Corruptions . | . . . Robots Melted . | . . . Combat Hostiles . | . . . Parts Melted 1 | . 1 . Heat Transferred 655 | 175 330 150 Parts Sabotaged . | . . . Parts Stolen . | . . . Parts Stripped . | . . . Power Chain Reactions . | . . . Alert | -11 -10 -10 ------- Run | Yrd Mat Min Maximum Alert Level . | . . . Low Security (%) 100 | 100 100 100 Level 1 . | . . . Level 2 . | . . . Level 3 . | . . . Level 4 . | . . . Level 5 . | . . . High Security . | . . . Max Security . | . . . Peak Influence 138 | 10 138 . Initial . | . . . Average 39 | 1 43 . Influence Increases 406 | 15 391 . Destroy 0b10 Robot/C 240 | . 240 . Destroy 0b10 Robot/NC 55 | 15 40 . Destroy Leader 50 | . 50 . Successful Hack 27 | . 27 . Disable Machine 15 | . 15 . Destroy Structure 19 | . 19 . Influence Decreases 406 | 15 391 . Time Decay 376 | 15 361 . Lost Part 30 | . 30 . Squads Dispatched 1 | . 1 . Investigation . | . . . Extermination . | . . . Reinforcement 1 | . 1 . Assault . | . . . Garrison . | . . . Intercept . | . . . Searches Triggered . | . . . Construction Impeded . | . . . Haulers Reinforced . | . . . Active Scanning Responses . | . . . Cargo Convoy Interrupts . | . . . Stealth | -11 -10 -10 --------- Run | Yrd Mat Min Distress Signals . | . . . Communications Jammed . | . . . Distress Signals . | . . . Times Spotted 19 | . 17 2 Peak Tracking Total 5 | . 5 2 Tactical Retreats . | . . . Traps | -11 -10 -10 ------- Run | Yrd Mat Min Traps Triggered 1 | . 1 . Indirectly . | . . . Trap Hack Attempts . | . . . Triggered . | . . . Disarmed . | . . . Reprogrammed . | . . . Reused . | . . . Traps Extracted . | . . . Installed . | . . . Triggered . | . . . Machines | -11 -10 -10 ---------- Run | Yrd Mat Min Machines Disabled 1 | . 1 . Max in Single Turn 1 | . 1 . Machines Repaired . | . . . Machines Dismantled . | . . . Machines Sabotaged . | . . . Overloaded Fab Kills . | . . . Hacking | -11 -10 -10 --------- Run | Yrd Mat Min Machines Accessed 7 | . 7 . Terminals 7 | . 7 . Fabricators . | . . . Repair Stations . | . . . Recycling Units . | . . . Scanalyzers . | . . . Garrison Access . | . . . Total Hacks 19 | . 19 . Successful 7 | . 7 . Failed 12 | . 12 . Catastrophic . | . . . Database Lockouts . | . . . Manual 19 | . 19 . Terminals 19 | . 19 . Fabricators . | . . . Repair Stations . | . . . Recycling Units . | . . . Scanalyzers . | . . . Garrison Access . | . . . Terminal Hacks . | . . . Fabricator Hacks . | . . . Repair Station Hacks . | . . . Recycling Unit Hacks . | . . . Scanalyzer . | . . . Garrison Access Hacks . | . . . Unauthorized Hacks 7 | . 7 . Terminals 7 | . 7 . Botnet 2 | . 2 . Skim 5 | . 5 . Fabricators . | . . . Repair Stations . | . . . Recycling Units . | . . . Scanalyzers . | . . . Garrison Access . | . . . Data Cores Recovered . | . . . Used . | . . . Hacking Detections 7 | . 7 . Full Trace Events . | . . . Feedback Events . | . . . Feedback Blocked . | . . . Robot Schematics Acquired . | . . . Robots Built . | . . . Authchips . | . . . Time . | . . . Total Robot Build Rating . | . . . Part Schematics Acquired . | . . . Parts Built . | . . . Authchips . | . . . Time . | . . . Total Part Build Rating . | . . . Part Studies Acquired . | . . . Parts Repaired . | . . . Time . | . . . Parts Recycled . | . . . Recycled Matter . | . . . Retrieved Matter . | . . . Retrieved Components . | . . . Parts Scanalyzed . | . . . Part Schematics Acquired . | . . . Parts Damaged . | . . . Bothacking | -11 -10 -10 ------------ Run | Yrd Mat Min Used RIF Installer . | . . . Robots Hacked . | . . . Non-combat . | . . . Combat . | . . . Robot Hacks Applied . | . . . Relay Couplers Released . | . . . Fabnet Peak Effective % . | . . . Robots Rewired . | . . . Allies Hacked . | . . . Hacks Repelled . | . . . Allies | -11 -10 -10 -------- Run | Yrd Mat Min Total Allies . | . . . Largest Group . | . . . Highest-Rated Group . | . . . Highest-Rated Ally . | . . . Total Orders . | . . . Ally Attacks . | . . . Total Damage . | . . . Kills . | . . . Allies Corrupted . | . . . Allies Melted . | . . . Intel | -11 -10 -10 ------- Run | Yrd Mat Min Active Infowar (turns) 1204 | 7 1168 29 Seismic 1204 | 7 1168 29 Robot Analysis Total . | . . . Derelict Logs Recovered . | . . . Drone Launches . | . . . Drone Recoveries . | . . . Exploration | -11 -10 -10 ------------- Run | Yrd Mat Min Turns Passed 1282 | 71 1168 43 Spaces Moved 744 | 41 675 28 Core 2 | 2 . . Treads . | . . . Legs . | . . . Wheels 742 | 39 675 28 Hover . | . . . Flight . | . . . Fastest Speed 50 | 50 80 105 Average Speed 99 | 81 99 105 Slowest Speed 105 | 100 105 105 Overloaded Moves . | . . . Propulsion Burnouts . | . . . Robots Hopped . | . . . Potential Cave-ins . | . . . Cave-ins Triggered . | . . . Exploration Rate (%) 38 | 3 96 16 Regions Visited 2 Branch Regions 1 Pre-discovered Areas 1 | . 1 . Known Exits Taken . | . . . Unknown Exits Taken 2 | 1 1 . Scrap Searched . | . . . Spaces Dug . | . . . Terrain Destroyed 21 | . 21 . Melee . | . . . Projectile . | . . . AOE 21 | . 21 . Terrain Rammed . | . . . Walls Destroyed . | . . . Machines Disabled . | . . . Actions | -11 -10 -10 --------- Run | Yrd Mat Min Total 1112 | 57 1022 33 Wait 229 | . 229 . Move 742 | 40 674 28 Hop . | . . . Pick Up 15 | . 15 . Fast Attach 14 | 7 7 . Attach 3 | . 2 1 Detach . | . . . Swap 5 | 1 4 . Drop 10 | . 10 . Fire 94 | 9 81 4 Melee . | . . . Ram . | . . . Kick . | . . . Crush . | . . . Escape Stasis . | . . . Rewire . | . . . Trap . | . . . Miscellaneous . | . . . Route ------- -11/Scrapyard -10/Materials (discovered 5 exits: [*Mat x3] / [*Min] / [*Sub]) -10/Mines (discovered 1 exit: [*Mat]) History --------- Turn | Location | Event 15 | -11/Scrapyard | Discovered new exit (range 15) 72 | -11/Scrapyard | Entered Materials 247 | -10/Materials | Lost 3 parts (1p1n1w) 258 | -10/Materials | Core integrity fell below 50% 297 | -10/Materials | Discovered new exit (range 13) 319 | -10/Materials | Build established: Mutant 350 | -10/Materials | Discovered new exit (range 13) 733 | -10/Materials | Discovered new exit (range 10) 766 | -10/Materials | Discovered new exit (range 11) 967 | -10/Materials | Learned location of Subcaves (-10) 967 | -10/Materials | Discovered new exit (range 16) 1102 | -10/Materials | Learned Storage emergency access door positions 1127 | -10/Materials | Learned Storage emergency access door positions 1143 | -10/Materials | Learned location of 3 exits from Materials 1148 | -10/Materials | Loaded intel: 8 terminal locations 1235 | -10/Materials | Learned 2 Storage zone layouts 1240 | -10/Materials | Entered Mines 1241 | -10/Mines | Assembled infested the area 1246 | -10/Mines | Assisted by a Guerilla fighting off Assembled 1270 | -10/Mines | Met a Derelict bent on vengeance 1275 | -10/Mines | Discovered new exit (range 13) 1278 | -10/Mines | Core integrity fell below 20% 1283 | -10/Mines | Destroyed by D-53 Grenadier with Mini Grenade Launcher Last Messages --------------- come on!" 01251_ TF-86W(h) destroyed. 01269_ Seismic Detector destroyed. 01270_ Com. Wheel destroyed. 01271_ K-01 Serf collects debris. 01273_ U-05 Engineer lays Concrete. 01274_ Lgt. Ion Engine destroyed. 01275_ K-01 Serf collects debris. 01275_ Wheel destroyed. 01275_ EXIT=FOUND 01275_ U-05 Engineer lays Concrete. 01276_ K-01 Serf collects debris. 01276_ K-01 Serf destroyed. 01276_ U-05 Engineer lays Concrete. 01278_ K-01 Serf collects debris. 01279_ The unstable cave ceiling collapses. 01279_ K-01 Serf collects debris. 01280_ Spread Laser destroyed. 01281_ K-01 Serf collects debris. 01283_ The unstable cave ceiling collapses. Map ----- +----------------------------------------------------+ | ?????????????????????????????????? | | ?????????????????????????????????? | | ?????????????????????????????????? | | ?????????????????????????????????? | | ?????????????????????????????????? | | ?????????????????????????????????? | | ?????????????????????????????????? | | ?????????????????????????????????? | | ?????????????????????????????????? | | ?????????????????????????????????? | | ????????????????????????? #?????? | | ????????????????????????? ?????? | | ????????????????????????? ?????? | | ????????????????????????? < ?????? | | ????????????????????????? ?????? | | ????????????????#######?? #?????? | | ???????????????? #?r #?????? | | ???????????????? # #?????? | | ????????????????? #?????? | | ????????????????? k ?????? | | ??????????????????""" ##????? | | ???????????????# """k ##???? | | ???????????###### """% ##??? | | ?????????? #??? | | ?????????? #??? | | ?????????????### d @ # #??? | | ??????????#### ## d #??? | | ??????????# # ## #??? | | ??????????# ##??? | | ??????????# ## # ##???? | | ?????????## %# ######### #????? | | ?????????# ?####### ####?? | | ?????????# ## ## ##? | | ??????????# # #? | | ??????????# #? | | ?????????# ## #? | | ?????# ##### ##? | | ?????# #????# ## ##?? | | ?????## #?????# #### ##??? | | ??????#####?????# ##??# #???? | | ???????????????# ##??? #???? | | ?????????????? #???? ##???? | | ?????????????## #????# ##????? | | ??????????????# #????####?????? | | ??????????????## #??????????????? | | ???????????????# #???????????????? | | ???????????????# ????????????????? | | ??????????????? ????????????????? | | ???????????????##????????????????? | | ?????????????????????????????????? | +----------------------------------------------------+ Best States ------------- Heat Dissipation 25 Energy Generation 10 Energy Capacity 250 Matter Stores 300 Matter Capacity 300 Sight Range 16 Terrain Scan Density 10 Armor Coverage 150 Evasion (%) 44 Item Schematics ----------------- None Robot Schematics ------------------ None Fabricated ------------ Nothing Repaired ---------- Nothing Studied --------- None Alien Tech Used ----------------- None Achievements -------------- None Challenges ------------ None Game ------ Seed ShadingRecyclingLauncher Manual? 0 Play Time 00:08:06 Cumulative 639.1 hours Start 2026.03.20 @ 15:54:19 End 2026.03.20 @ 16:11:18 Sessions 1 Manual Loads 0 Difficulty Rogue Special Mode None Game No. 205 Rogue 205 Adventurer 0 Explorer 0 Win Type - Total 23 Types 9/1/6/1/1/0/1/1/1/2 Lore% 92 Gallery% 86 Achievement% 79 Wizard Run 0 Options --------- Layout 1 ASCII 0 Keyboard 0 Movement Mouse Keybinds 0 Fullscreen 2 Font 32/SmallcapsGlow Map View 50x35 Zoom Use 0% Tactical HUD 1 Map Filters NONE Filters NONE Steam 1 RUN: b9a0564c-a033-461d-a191-75cf9dde1e9f